fUST/lending_fUST_20250915
["ID","MTS","AMOUNT","RATE_DAILY","PERIOD"]
[385459199,1757865652485,1450.36675808,0.000199,2]
[385459200,1757865707249,152.258297,0.00024,30]
[385459202,1757865847638,1402.0211994,0.000199,2]
[385459203,1757865887842,-373.96650489,0.00020235,2]
[385459204,1757865887911,-6399.68903274,0.0002099,2]
[385459205,1757865888105,-4285.47615695,0.0002099,2]
[385459206,1757865888135,-1429.0576861,0.0002099,2]
[385459207,1757866037222,1346.44842737,0.000199,2]
[385459208,1757866080069,247.44,0.00015984,2]
[385459209,1757866111717,875.51264321,0.0002012,2]
[385459210,1757866135484,836.688565,0.0002012,2]
[385459211,1757866158328,747.29215085,0.0002012,2]
[385459212,1757866226128,1301.40014639,0.000199,2]
[385459230,1757866232924,-666.45602242,0.00020235,2]
[385459232,1757866232979,-3036.61857251,0.00020235,2]
[385459233,1757866232988,-179.066888,0.00020757,2]
[385459234,1757866232998,-1301.40014617,0.00021149,2]
[385459235,1757866233008,-2578.65354194,0.000214,7]
[385459236,1757866233017,-1200.0,0.00021705,2]
[385459237,1757866233028,-300.0,0.00021705,2]
[385459238,1757866233039,-300.0,0.00021705,2]
[385459240,1757866233049,-300.0,0.00021705,2]
[385459241,1757866233058,-1651.17343055,0.00021707,2]
[385459242,1757866233067,-300.0,0.00021716,2]
[385459243,1757866233078,-3710.39321042,0.00021717,2]
[385459244,1757866233088,-612.92347838,0.00021717,2]
[385459245,1757866233098,-10594.5974851,0.00021729,2]
[385459246,1757866233111,-1249.85946,0.00021729,2]
[385459247,1757866233122,-612.92347834,0.00021742,2]
[385459248,1757866233135,-612.92347834,0.00021767,2]
[385459249,1757866233144,-612.92347834,0.00021792,2]
[385459250,1757866233154,-571.12,0.00021807,3]
[385459251,1757866233163,-285.56,0.00021807,3]
[385459252,1757866233172,-856.72,0.00021807,3]
[385459253,1757866233182,-22469.5008486,0.00021815,2]
[385459254,1757866233191,-280.21924281,0.00021816,2]
[385459255,1757866233201,-500.0,0.00021816,2]
[385459256,1757866233210,-478.05796152,0.00021816,2]
[385459257,1757866233220,-500.0,0.00021816,2]
[385459258,1757866233229,-500.0,0.00021816,2]
[385459259,1757866233238,-500.0,0.00021816,2]
[385459260,1757866233251,-500.0,0.00021816,2]
[385459261,1757866233262,-500.0,0.00021816,2]
[385459262,1757866233272,-500.0,0.00021816,2]
[385459263,1757866233281,-500.0,0.00021816,2]
[385459264,1757866233291,-500.0,0.00021816,2]
[385459265,1757866233300,-500.0,0.00021816,2]
[385459266,1757866233309,-500.0,0.00021816,2]
[385459267,1757866233319,-500.0,0.00021816,2]
[385459268,1757866233328,-500.0,0.00021816,2]
[385459269,1757866233338,-500.0,0.00021816,2]
[385459270,1757866233348,-500.0,0.00021816,2]
[385459271,1757866233357,-500.0,0.00021816,2]
[385459272,1757866233367,-500.0,0.00021816,2]
[385459273,1757866233377,-500.0,0.00021816,2]
[385459274,1757866233387,-336.18381267,0.00021816,2]
[385459275,1757866233396,-500.0,0.00021816,2]
[385459276,1757866233406,-577.39,0.00021816,2]
[385459277,1757866233415,-174693.57228563,0.00021817,2]
[385459278,1757866233425,-612.92347834,0.00021817,2]
[385459279,1757866233434,-4552.13232344,0.00021817,2]
[385459280,1757866233444,-500.0,0.00021873,2]
[385459281,1757866233453,-500.0,0.00021873,2]
[385459282,1757866233463,-500.0,0.00021873,2]
[385459283,1757866233472,-500.0,0.00021873,2]
[385459284,1757866233482,-500.0,0.00021873,2]
[385459285,1757866233491,-497.27589563,0.00021873,2]
[385459286,1757866233501,-500.0,0.00021873,2]
[385459287,1757866233511,-500.0,0.00021873,2]
[385459288,1757866233520,-500.0,0.00021873,2]
[385459289,1757866233530,-500.0,0.00021873,2]
[385459290,1757866233539,-500.0,0.00021873,2]
[385459291,1757866233548,-393.34958586,0.00021873,2]
[385459292,1757866233558,-500.0,0.00021873,2]
[385459293,1757866233567,-500.0,0.00021873,2]
[385459294,1757866233577,-500.0,0.00021873,2]
[385459295,1757866233587,-500.0,0.00021873,2]
[385459296,1757866233597,-500.0,0.00021873,2]
[385459297,1757866233607,-312.10821091,0.00021873,2]
[385459303,1757866238668,-12156.06656029,0.00021717,2]
[385459304,1757866238718,-690.50866658,0.00021717,2]
[385459305,1757866238730,-618.44922971,0.00021717,2]
[385459306,1757866238741,-3677.68839864,0.00021717,2]
[385459307,1757866238754,-58357.36714478,0.00021717,2]
[385459308,1757866238764,-187.89178909,0.00021873,2]
[385459309,1757866238773,-503.38114305,0.00021873,2]
[385459310,1757866238784,-500.0,0.00021873,2]
[385459311,1757866238793,-504.28191165,0.00021873,2]
[385459312,1757866238802,-500.0,0.00021873,2]
[385459313,1757866238811,-505.09367569,0.00021873,2]
[385459314,1757866238821,-500.0,0.00021873,2]
[385459315,1757866238830,-500.43853504,0.00021873,2]
[385459316,1757866238839,-504.43838053,0.00021873,2]
[385459317,1757866238848,-502.04397861,0.00021873,2]
[385459318,1757866238858,-500.0,0.00021873,2]
[385459319,1757866238867,-500.0,0.00021873,2]
[385459320,1757866238876,-500.0,0.00021873,2]
[385459321,1757866238886,-500.64990657,0.00021873,2]
[385459322,1757866238895,-500.0,0.00021873,2]
[385459323,1757866238904,-500.0,0.00021873,2]
[385459324,1757866238913,-206.97033485,0.00021873,2]
[385459325,1757866238923,-500.0,0.00021873,2]
[385459326,1757866238932,-500.0,0.00021873,2]
[385459327,1757866238941,-1110.0,0.00021873,2]
[385459328,1757866238950,-241.68970822,0.00021873,2]
[385459329,1757866238959,-151.0,0.00021873,2]
[385459330,1757866238968,-500.0,0.00021873,2]
[385459331,1757866238978,-151.0,0.00021873,2]
[385459332,1757866238987,-500.0,0.00021873,2]
[385459333,1757866238996,-151.0,0.00021873,2]
[385459334,1757866239183,-151.0,0.00021873,2]
[385459335,1757866239192,-166.99079156,0.00021873,2]
[385459336,1757866239202,-151.0,0.00021873,2]
[385459337,1757866239211,-500.0,0.00021873,2]
[385459338,1757866239220,-500.0,0.00021873,2]
[385459339,1757866239229,-151.0,0.00021873,2]
[385459340,1757866239239,-151.0,0.00021873,2]
[385459341,1757866239249,-500.0,0.00021873,2]
[385459342,1757866239259,-157.0,0.00021873,2]
[385459343,1757866239269,-151.0,0.00021873,2]
[385459344,1757866239278,-500.0,0.00021873,2]
[385459345,1757866239287,-151.0,0.00021873,2]
[385459346,1757866239296,-151.0,0.00021873,2]
[385459347,1757866239306,-151.0,0.00021873,2]
[385459348,1757866239315,-163.25428994,0.00021873,2]
[385459349,1757866239325,-500.0,0.00021873,2]
[385459350,1757866239334,-500.0,0.00021873,2]
[385459351,1757866239344,-500.0,0.00021873,2]
[385459352,1757866239353,-160.0,0.00021888,2]
[385459353,1757866239363,-233.1999649,0.00021891,2]
[385459354,1757866239371,-847.27885267,0.00021891,2]
[385459355,1757866239381,-160.0,0.00021891,2]
[385459356,1757866239390,-531.23217266,0.00021891,2]
[385459357,1757866239399,-217.77739939,0.00021891,2]
[385459358,1757866239409,-160.0,0.00021891,2]
[385459359,1757866239418,-300.0,0.00021898,20]
[385459360,1757866239428,-300.0,0.00021898,20]
[385459361,1757866239437,-300.0,0.00021898,20]
[385459362,1757866239447,-300.0,0.00021898,20]
[385459363,1757866239456,-300.0,0.00021898,20]
[385459364,1757866239465,-300.0,0.00021898,20]
[385459365,1757866239475,-300.0,0.00021898,20]
[385459366,1757866239485,-300.0,0.00021898,20]
[385459367,1757866239494,-300.0,0.00021898,20]
[385459368,1757866239505,-300.0,0.00021898,20]
[385459369,1757866239515,-300.0,0.00021898,20]
[385459370,1757866239524,-300.0,0.00021898,20]
[385459371,1757866239533,-300.0,0.00021898,20]
[385459372,1757866239542,-300.0,0.00021898,20]
[385459373,1757866239552,-300.0,0.00021898,20]
[385459374,1757866239561,-708.4595882,0.000219,2]
[385459375,1757866239570,-151.0,0.00021904,2]
[385459376,1757866239579,-151.0,0.00021904,2]
[385459377,1757866239588,-1000.0,0.00021904,2]
[385459378,1757866239598,-151.0,0.00021904,2]
[385459379,1757866239607,-1000.0,0.00021904,2]
[385459380,1757866239616,-151.0,0.00021904,2]
[385459381,1757866239626,-1000.0,0.00021904,2]
[385459382,1757866239636,-151.0,0.00021904,2]
[385459383,1757866239646,-151.0,0.00021904,2]
[385459384,1757866239655,-151.0,0.00021904,2]
[385459385,1757866239665,-178.57357894,0.00021904,2]
[385459386,1757866239674,-151.0,0.00021904,2]
[385459387,1757866239683,-250.0,0.00021904,2]
[385459388,1757866239692,-250.0,0.00021904,2]
[385459389,1757866239701,-250.0,0.00021904,2]
[385459390,1757866239710,-250.0,0.00021904,2]
[385459391,1757866239720,-1000.0,0.00021916,2]
[385459392,1757866239729,-1000.0,0.00021916,2]
[385459393,1757866239739,-1000.0,0.00021916,2]
[385459394,1757866239750,-1000.0,0.00021916,2]
[385459395,1757866239759,-1000.0,0.00021916,2]
[385459396,1757866239768,-1000.0,0.00021916,2]
[385459397,1757866239777,-1000.0,0.00021916,2]
[385459398,1757866239787,-1000.0,0.00021916,2]
[385459399,1757866239796,-1000.0,0.00021916,2]
[385459400,1757866239806,-480.0,0.00021917,2]
[385459401,1757866239815,-419.41663565,0.00021917,2]
[385459402,1757866239825,-480.0,0.00021917,2]
[385459403,1757866239834,-524.38777164,0.00021917,2]
[385459404,1757866239843,-480.0,0.00021917,2]
[385459405,1757866239852,-480.0,0.00021917,2]
[385459406,1757866239861,-480.0,0.00021917,2]
[385459407,1757866239871,-480.0,0.00021917,2]
[385459408,1757866239881,-480.0,0.00021917,2]
[385459409,1757866239891,-480.0,0.00021917,2]
[385459410,1757866239899,-480.0,0.00021917,2]
[385459411,1757866239908,-520.0,0.00021917,3]
[385459412,1757866239918,-480.0,0.00021917,2]
[385459413,1757866239927,-480.0,0.00021917,2]
[385459414,1757866239936,-480.0,0.00021917,2]
[385459415,1757866239946,-564.77069167,0.00021917,2]
[385459416,1757866239956,-480.0,0.00021917,2]
[385459417,1757866239965,-480.0,0.00021917,2]
[385459418,1757866239974,-480.0,0.00021917,2]
[385459419,1757866239984,-480.0,0.00021917,2]
[385459420,1757866239993,-480.0,0.00021917,2]
[385459421,1757866240003,-480.0,0.00021917,2]
[385459422,1757866240013,-835.72,0.00021917,2]
[385459423,1757866240022,-480.0,0.00021917,2]
[385459424,1757866240033,-619.13576405,0.00021917,2]
[385459425,1757866240044,-480.0,0.00021917,2]
[385459426,1757866240053,-480.0,0.00021917,2]
[385459427,1757866240063,-480.0,0.00021917,2]
[385459428,1757866240072,-480.0,0.00021917,2]
[385459429,1757866240082,-480.0,0.00021917,2]
[385459430,1757866240092,-480.0,0.00021917,2]
[385459431,1757866240101,-480.0,0.00021917,2]
[385459432,1757866240111,-496.66676076,0.00021917,2]
[385459433,1757866240121,-480.0,0.00021917,2]
[385459434,1757866240130,-480.0,0.00021917,2]
[385459435,1757866240139,-480.0,0.00021917,2]
[385459436,1757866240149,-480.0,0.00021917,2]
[385459437,1757866240158,-483.67776557,0.00021917,2]
[385459438,1757866240168,-484.76341819,0.00021917,2]
[385459439,1757866240177,-480.0,0.00021917,2]
[385459440,1757866240187,-1000.0,0.00021917,2]
[385459441,1757866240196,-480.0,0.00021917,2]
[385459442,1757866240206,-480.0,0.00021917,2]
[385459443,1757866240215,-705.41,0.00021917,2]
[385459444,1757866240225,-480.0,0.00021917,2]
[385459445,1757866240234,-488.78194166,0.00021917,2]
[385459446,1757866240244,-480.0,0.00021917,2]
[385459447,1757866240254,-480.0,0.00021917,2]
[385459448,1757866240264,-480.0,0.00021917,2]
[385459449,1757866240273,-480.0,0.00021917,2]
[385459450,1757866240282,-480.0,0.00021917,2]
[385459451,1757866240292,-480.0,0.00021917,2]
[385459452,1757866240301,-480.0,0.00021917,2]
[385459453,1757866240310,-480.0,0.00021917,2]
[385459454,1757866240319,-480.0,0.00021917,2]
[385459455,1757866240329,-480.0,0.00021917,2]
[385459456,1757866240338,-480.0,0.00021917,2]
[385459457,1757866240348,-480.0,0.00021917,2]
[385459458,1757866240357,-480.0,0.00021917,2]
[385459459,1757866240366,-391.94558077,0.00021917,2]
[385459461,1757866240376,-480.0,0.00021917,2]
[385459463,1757866240384,-480.0,0.00021917,2]
[385459465,1757866240394,-480.0,0.00021917,2]
[385459467,1757866240403,-480.0,0.00021917,2]
[385459469,1757866240412,-622.80144098,0.00021917,2]
[385459471,1757866240422,-480.0,0.00021917,2]
[385459473,1757866240431,-567.06,0.00021917,2]
[385459475,1757866240441,-659.2,0.00021917,2]
[385459477,1757866240450,-897.66,0.00021917,2]
[385459479,1757866240460,-480.0,0.00021917,2]
[385459481,1757866240469,-480.0,0.00021917,2]
[385459483,1757866240479,-480.0,0.00021917,2]
[385459485,1757866240487,-480.0,0.00021917,2]
[385459487,1757866240496,-480.0,0.00021917,2]
[385459489,1757866240506,-480.0,0.00021917,2]
[385459491,1757866240515,-480.0,0.00021917,2]
[385459492,1757866240524,-367.84945795,0.00021917,2]
[385459494,1757866240534,-480.0,0.00021917,2]
[385459496,1757866240543,-483.56746403,0.00021917,2]
[385459498,1757866240552,-480.0,0.00021917,2]
[385459500,1757866240561,-480.0,0.00021917,2]
[385459502,1757866240571,-480.0,0.00021917,2]
[385459504,1757866240581,-480.0,0.00021917,2]
[385459506,1757866240590,-481.74781042,0.00021917,2]
[385459509,1757866240602,-795.52,0.00021917,2]
[385459511,1757866240611,-480.0,0.00021917,2]
[385459513,1757866240620,-480.0,0.00021917,2]
[385459514,1757866240629,-500.0,0.00021917,2]
[385459515,1757866240639,-480.0,0.00021917,2]
[385459516,1757866240647,-276.3920233,0.00021917,2]
[385459517,1757866240658,-480.0,0.00021917,2]
[385459518,1757866240667,-480.0,0.00021917,2]
[385459519,1757866240676,-733.16,0.00021917,2]
[385459520,1757866240685,-480.0,0.00021917,2]
[385459521,1757866240694,-480.0,0.00021917,2]
[385459522,1757866240703,-480.0,0.00021917,2]
[385459523,1757866240712,-636.15,0.00021917,2]
[385459524,1757866240721,-480.0,0.00021917,2]
[385459525,1757866240731,-480.0,0.00021917,2]
[385459526,1757866240741,-480.0,0.00021917,2]
[385459527,1757866240751,-1060.84,0.00021917,2]
[385459528,1757866240760,-480.0,0.00021917,2]
[385459529,1757866240770,-480.0,0.00021917,2]
[385459530,1757866240780,-480.0,0.00021917,2]
[385459531,1757866240789,-480.0,0.00021917,2]
[385459532,1757866240799,-480.0,0.00021917,2]
[385459533,1757866240808,-488.17869395,0.00021917,2]
[385459534,1757866240817,-480.0,0.00021917,2]
[385459535,1757866240827,-480.0,0.00021917,2]
[385459536,1757866240837,-491.91650673,0.00021917,2]
[385459537,1757866240846,-480.0,0.00021917,2]
[385459538,1757866240856,-480.0,0.00021917,2]
[385459539,1757866240865,-480.0,0.00021917,2]
[385459540,1757866240875,-151.0,0.00021917,2]
[385459541,1757866240884,-238.85481629,0.00021917,2]
[385459542,1757866240893,-157.0,0.00021917,2]
[385459543,1757866240903,-151.0,0.00021917,2]
[385459544,1757866240912,-151.0,0.00021917,2]
[385459545,1757866240921,-480.0,0.00021917,2]
[385459546,1757866240931,-480.0,0.00021917,2]
[385459547,1757866240940,-480.0,0.00021917,2]
[385459548,1757866240949,-151.0,0.00021917,2]
[385459549,1757866240958,-480.0,0.00021917,2]
[385459550,1757866240967,-570.24,0.00021917,2]
[385459551,1757866240976,-151.0,0.00021917,2]
[385459552,1757866240986,-480.0,0.00021917,2]
[385459553,1757866240995,-1003.50289131,0.00021917,2]
[385459554,1757866241005,-480.0,0.00021917,2]
[385459555,1757866241014,-480.0,0.00021917,2]
[385459556,1757866241023,-480.89282975,0.00021917,2]
[385459557,1757866241035,-480.0,0.00021917,2]
[385459558,1757866241047,-480.0,0.00021917,2]
[385459559,1757866241055,-746.94,0.00021917,2]
[385459560,1757866241065,-480.0,0.00021917,2]
[385459561,1757866241075,-480.0,0.00021917,2]
[385459562,1757866241084,-480.0,0.00021917,2]
[385459563,1757866241092,-480.0,0.00021917,2]
[385459564,1757866241102,-480.0,0.00021917,2]
[385459565,1757866241113,-480.0,0.00021917,2]
[385459566,1757866241123,-480.0,0.00021917,2]
[385459567,1757866241132,-480.0,0.00021917,2]
[385459568,1757866241142,-480.0,0.00021917,2]
[385459569,1757866241152,-480.0,0.00021917,2]
[385459570,1757866241161,-480.0,0.00021917,2]
[385459571,1757866241170,-480.0,0.00021917,2]
[385459572,1757866241180,-480.0,0.00021917,2]
[385459573,1757866241190,-480.0,0.00021917,2]
[385459574,1757866241201,-480.0,0.00021917,2]
[385459575,1757866241210,-480.0,0.00021917,2]
[385459576,1757866241220,-480.0,0.00021917,2]
[385459577,1757866241230,-480.0,0.00021917,2]
[385459578,1757866241239,-480.0,0.00021917,2]
[385459579,1757866241250,-480.0,0.00021917,2]
[385459580,1757866241260,-480.0,0.00021917,2]
[385459581,1757866241270,-480.0,0.00021917,2]
[385459582,1757866241281,-489.81829953,0.00021917,2]
[385459583,1757866241291,-480.0,0.00021917,2]
[385459584,1757866241300,-1088.42,0.00021917,2]
[385459585,1757866241310,-153.66175009,0.00021917,2]
[385459586,1757866241319,-480.0,0.00021917,2]
[385459587,1757866241329,-480.0,0.00021917,2]
[385459588,1757866241338,-493.2255861,0.00021917,2]
[385459589,1757866241347,-480.0,0.00021917,2]
[385459590,1757866241357,-480.0,0.00021917,2]
[385459591,1757866241366,-480.5819029,0.00021917,2]
[385459592,1757866241375,-480.0,0.00021917,2]
[385459593,1757866241384,-480.0,0.00021917,2]
[385459594,1757866241394,-480.0,0.00021917,2]
[385459595,1757866241403,-486.38386401,0.00021917,2]
[385459596,1757866241413,-480.0,0.00021917,2]
[385459597,1757866241422,-480.0,0.00021917,2]
[385459598,1757866241431,-481.95095365,0.00021917,2]
[385459599,1757866241441,-480.0,0.00021917,2]
[385459600,1757866241451,-480.0,0.00021917,2]
[385459601,1757866241461,-480.0,0.00021917,2]
[385459602,1757866241470,-480.0,0.00021917,2]
[385459603,1757866241479,-480.0,0.00021917,2]
[385459604,1757866241489,-480.0,0.00021917,2]
[385459605,1757866241498,-480.0,0.00021917,2]
[385459606,1757866241508,-480.0,0.00021917,2]
[385459607,1757866241517,-480.0,0.00021917,2]
[385459608,1757866241526,-480.0,0.00021917,2]
[385459609,1757866241536,-480.0,0.00021917,2]
[385459610,1757866241545,-720.23,0.00021917,2]
[385459611,1757866241554,-496.18587711,0.00021917,2]
[385459612,1757866241563,-480.0,0.00021917,2]
[385459613,1757866241573,-480.0,0.00021917,2]
[385459614,1757866241582,-480.0,0.00021917,2]
[385459615,1757866241591,-480.0,0.00021917,2]
[385459616,1757866241601,-480.0,0.00021917,2]
[385459617,1757866241610,-480.0,0.00021917,2]
[385459618,1757866241620,-480.0,0.00021917,2]
[385459619,1757866241629,-480.0,0.00021917,2]
[385459620,1757866241638,-480.0,0.00021917,2]
[385459621,1757866241647,-490.19204353,0.00021917,2]
[385459622,1757866241657,-185.26996645,0.00021917,2]
[385459623,1757866241667,-250.77639033,0.00021917,2]
[385459624,1757866241676,-480.0,0.00021917,2]
[385459625,1757866241685,-480.0,0.00021917,2]
[385459626,1757866241694,-485.38389311,0.00021917,2]
[385459627,1757866241703,-480.0,0.00021917,2]
[385459628,1757866241713,-480.0,0.00021917,2]
[385459629,1757866241723,-588.67,0.00021917,2]
[385459630,1757866241732,-480.0,0.00021917,2]
[385459631,1757866241742,-480.0,0.00021917,2]
[385459632,1757866241751,-480.0,0.00021917,2]
[385459633,1757866241760,-480.0,0.00021917,2]
[385459634,1757866241769,-480.0,0.00021917,2]
[385459635,1757866241780,-480.0,0.00021917,2]
[385459636,1757866241791,-498.84002046,0.00021917,2]
[385459637,1757866241806,-480.0,0.00021917,2]
[385459638,1757866241815,-485.45406545,0.00021917,2]
[385459639,1757866241825,-480.0,0.00021917,2]
[385459640,1757866241835,-480.0,0.00021917,2]
[385459641,1757866241844,-480.0,0.00021917,2]
[385459642,1757866241854,-480.0,0.00021917,2]
[385459643,1757866241863,-480.0,0.00021917,2]
[385459644,1757866241874,-480.0,0.00021917,2]
[385459645,1757866241883,-1415.97,0.00021917,2]
[385459646,1757866241892,-480.0,0.00021917,2]
[385459647,1757866241901,-863.04,0.00021917,2]
[385459648,1757866241911,-480.0,0.00021917,2]
[385459649,1757866241921,-480.0,0.00021917,2]
[385459650,1757866241932,-493.28,0.00021917,2]
[385459651,1757866241943,-798.84,0.00021917,2]
[385459652,1757866241952,-480.0,0.00021917,2]
[385459653,1757866241962,-480.0,0.00021917,2]
[385459654,1757866241971,-480.0,0.00021917,2]
[385459655,1757866241980,-482.04299615,0.00021917,2]
[385459656,1757866241990,-582.83323739,0.00021917,2]
[385459657,1757866242001,-480.0,0.00021917,2]
[385459658,1757866242011,-500.0,0.00021917,2]
[385459659,1757866242020,-480.0,0.00021917,2]
[385459660,1757866242036,-807.21,0.00021917,2]
[385459661,1757866242046,-480.0,0.00021917,2]
[385459662,1757866242055,-480.0,0.00021917,2]
[385459663,1757866242065,-240.50131448,0.00021917,2]
[385459664,1757866242076,-480.0,0.00021917,2]
[385459665,1757866242086,-631.88,0.00021917,2]
[385459666,1757866242096,-480.0,0.00021917,2]
[385459667,1757866242107,-645.9,0.00021917,2]
[385459668,1757866242118,-480.0,0.00021917,2]
[385459669,1757866242128,-480.0,0.00021917,2]
[385459670,1757866242138,-480.0,0.00021917,2]
[385459671,1757866242149,-480.0,0.00021917,2]
[385459672,1757866242158,-480.0,0.00021917,2]
[385459673,1757866242168,-481.05311618,0.00021917,2]
[385459674,1757866242179,-483.38425862,0.00021917,2]
[385459675,1757866242188,-480.0,0.00021917,2]
[385459676,1757866242198,-480.0,0.00021917,2]
[385459677,1757866242208,-485.29584731,0.00021917,2]
[385459678,1757866242217,-480.0,0.00021917,2]
[385459679,1757866242227,-480.0,0.00021917,2]
[385459680,1757866242237,-484.04086642,0.00021917,2]
[385459681,1757866242247,-489.58326246,0.00021917,2]
[385459682,1757866242258,-480.0,0.00021917,2]
[385459683,1757866242267,-480.0,0.00021917,2]
[385459684,1757866242276,-482.26518072,0.00021917,2]
[385459685,1757866242286,-480.0,0.00021917,2]
[385459686,1757866242296,-406.76852256,0.00021917,2]
[385459687,1757866242305,-491.81959489,0.00021917,2]
[385459688,1757866242314,-480.0,0.00021917,2]
[385459689,1757866242325,-480.0,0.00021917,2]
[385459690,1757866242334,-564.71317428,0.00021917,2]
[385459691,1757866242343,-500.0,0.00021917,2]
[385459692,1757866242356,-480.0,0.00021917,2]
[385459693,1757866242388,-480.0,0.00021917,2]
[385459694,1757866242406,-480.0,0.00021917,2]
[385459695,1757866242424,-544.5450975,0.00021917,2]
[385459696,1757866242434,-480.0,0.00021917,2]
[385459697,1757866242443,-480.0,0.00021917,2]
[385459698,1757866242452,-480.0,0.00021917,2]
[385459699,1757866242461,-480.0,0.00021917,2]
[385459700,1757866242470,-480.0,0.00021917,2]
[385459701,1757866242479,-480.0,0.00021917,2]
[385459702,1757866242488,-480.0,0.00021917,2]
[385459703,1757866242497,-480.0,0.00021917,2]
[385459704,1757866242508,-480.0,0.00021917,2]
[385459705,1757866242517,-480.0,0.00021917,2]
[385459706,1757866242528,-339.95536238,0.00021917,2]
[385459707,1757866242538,-480.0,0.00021917,2]
[385459708,1757866242548,-480.0,0.00021917,2]
[385459709,1757866242557,-480.0,0.00021917,2]
[385459710,1757866242566,-480.0,0.00021917,2]
[385459711,1757866242575,-480.0,0.00021917,2]
[385459712,1757866242584,-1481.29,0.00021917,2]
[385459713,1757866242594,-490.52124139,0.00021917,2]
[385459714,1757866242603,-480.0,0.00021917,2]
[385459715,1757866242613,-480.0,0.00021917,2]
[385459716,1757866242623,-480.0,0.00021917,2]
[385459717,1757866242632,-721.72,0.00021917,2]
[385459718,1757866242642,-237.78727799,0.00021917,2]
[385459719,1757866242651,-480.0,0.00021917,2]
[385459720,1757866242660,-480.0,0.00021917,2]
[385459721,1757866242670,-482.20888427,0.00021917,2]
[385459722,1757866242680,-480.0,0.00021917,2]
[385459723,1757866242689,-480.0,0.00021917,2]
[385459724,1757866242699,-480.0,0.00021917,2]
[385459725,1757866242708,-480.0,0.00021917,2]
[385459726,1757866242717,-480.0,0.00021917,2]
[385459727,1757866242727,-480.0,0.00021917,2]
[385459728,1757866242737,-480.0,0.00021917,2]
[385459729,1757866242746,-480.0,0.00021917,2]
[385459730,1757866242757,-480.0,0.00021917,2]
[385459731,1757866242766,-480.0,0.00021917,2]
[385459732,1757866242775,-482.56057162,0.00021917,2]
[385459733,1757866242785,-488.21204967,0.00021917,2]
[385459734,1757866242794,-480.0,0.00021917,2]
[385459735,1757866242803,-157.284925,0.00021917,2]
[385459736,1757866242812,-480.0,0.00021917,2]
[385459737,1757866242821,-846.54,0.00021917,2]
[385459738,1757866242831,-480.0,0.00021917,2]
[385459739,1757866242840,-480.0,0.00021917,2]
[385459740,1757866242849,-480.0,0.00021917,2]
[385459741,1757866242858,-761.31,0.00021917,2]
[385459742,1757866242868,-151.0,0.00021917,2]
[385459743,1757866242878,-480.0,0.00021917,2]
[385459744,1757866242887,-480.0,0.00021917,2]
[385459745,1757866242896,-480.0,0.00021917,2]
[385459746,1757866242905,-493.23030659,0.00021917,2]
[385459747,1757866242915,-480.0,0.00021917,2]
[385459748,1757866242924,-480.0,0.00021917,2]
[385459749,1757866242934,-151.0,0.00021917,2]
[385459750,1757866242944,-480.0,0.00021917,2]